fUSD/lending_fUSD_20260205
["ID","MTS","AMOUNT","RATE_DAILY","PERIOD"]
[404562176,1770293441350,-2000.0,0.00017099,2]
[404562177,1770293441360,-176.28122483,0.00017099,2]
[404562178,1770293441369,-2000.0,0.00017099,2]
[404562179,1770293441378,-2000.0,0.00017099,2]
[404562180,1770293441388,-2000.0,0.00017099,2]
[404562181,1770293441397,-2000.0,0.00017099,2]
[404562182,1770293441406,-2000.0,0.00017099,2]
[404562183,1770293441416,-2000.0,0.00017099,2]
[404562184,1770293441425,-2000.0,0.00017099,2]
[404562185,1770293441434,-2000.0,0.00017099,2]
[404562186,1770293441443,-250.0,0.00017099,2]
[404562187,1770293441452,-250.0,0.00017099,2]
[404562188,1770293441461,-250.0,0.00017099,2]
[404562189,1770293441471,-250.0,0.00017099,2]
[404562190,1770293441480,-250.0,0.00017099,2]
[404562191,1770293441489,-250.0,0.00017099,2]
[404562192,1770293441498,-250.0,0.00017099,2]
[404562193,1770293441508,-228.82569288,0.00017099,2]
[404562194,1770293441517,-209.40437684,0.00017099,2]
[404562195,1770293441526,-250.0,0.00017099,2]
[404562196,1770293441535,-250.0,0.00017099,2]
[404562197,1770293441544,-250.0,0.00017099,2]
[404562198,1770293441554,-199.92628631,0.00017099,2]
[404562199,1770293441563,-250.0,0.00017099,2]
[404562200,1770293441572,-250.0,0.00017099,2]
[404562201,1770293441581,-250.0,0.00017099,2]
[404562202,1770293441591,-250.0,0.00017099,2]
[404562203,1770293441601,-250.0,0.00017099,2]
[404562204,1770293441611,-250.0,0.00017099,2]
[404562205,1770293441620,-250.0,0.00017099,2]
[404562206,1770293441629,-250.0,0.00017099,2]
[404562207,1770293441639,-250.0,0.00017099,2]
[404562208,1770293441649,-200.0,0.00017099,2]
[404562209,1770293441658,-721.12765535,0.00017099,2]
[404562210,1770293441667,-250.0,0.00017099,2]
[404562211,1770293441677,-250.0,0.00017099,2]
[404562212,1770293441687,-1428.38747117,0.00017099,2]
[404562213,1770293441696,-500.0,0.00017099,2]
[404562214,1770293441706,-512.54322178,0.00017099,2]
[404562215,1770293441717,-174.61919141,0.00017099,2]
[404562216,1770293441730,-500.0,0.00017099,2]
[404562217,1770293441740,-500.0,0.00017099,2]
[404562218,1770293441749,-500.0,0.00017099,2]
[404562219,1770293441759,-277.35679052,0.00017099,2]
[404562220,1770293441769,-500.0,0.00017099,2]
[404562221,1770293441778,-500.0,0.00017099,2]
[404562222,1770293441788,-500.0,0.00017099,2]
[404562223,1770293441797,-500.0,0.00017099,2]
[404562224,1770293441807,-494.97768813,0.00017099,2]
[404562225,1770293441816,-209.40437684,0.00017099,2]
[404562226,1770293441826,-209.40437684,0.00017099,2]
[404562227,1770293441835,-239.5,0.00017112,2]
[404562228,1770293441845,-200.0,0.00017124,2]
[404562229,1770293441855,-200.0,0.00017124,2]
[404562230,1770293441864,-217.15233878,0.00017154,2]
[404562231,1770293441874,-152.0173956,0.00017181,2]
[404562232,1770293441884,-1506.0,0.000172,2]
[404562233,1770293441893,-225.18697532,0.00017209,2]
[404562234,1770293441903,-1000.0,0.0001726,2]
[404562235,1770293441913,-233.51889341,0.00017264,2]
[404562236,1770293441923,-1962.0,0.00017306,2]
[404562237,1770293441932,-242.15909246,0.00017319,2]
[404562238,1770293441942,-251.11897888,0.00017374,2]
[404562239,1770293441951,-460.0,0.00017377,2]
[404562240,1770293441961,-152.0,0.0001738,17]
[404562241,1770293441971,-260.4103811,0.00017429,2]
[404562242,1770293441981,-773.71,0.00017467,2]
[404562243,1770293441991,-460.0,0.00017482,2]
[404562244,1770293442003,-270.0455652,0.00017484,2]
[404562245,1770293442013,-1000.0,0.00017534,2]
[404562246,1770293442023,-280.03725112,0.00017539,2]
[404562247,1770293442032,-152.93,0.00017566,2]
[404562248,1770293442042,-219.31,0.00017579,2]
[404562249,1770293442053,-290.39862941,0.00017594,2]
[404562250,1770293442062,-460.0,0.00017612,2]
[404562251,1770293442072,-460.0,0.0001763,2]
[404562252,1770293442083,-771.01748645,0.00017647,2]
[404562253,1770293442092,-5000.0,0.00017647,2]
[404562254,1770293442103,-217.15233878,0.00017647,2]
[404562255,1770293442113,-200.0,0.00017647,2]
[404562256,1770293442124,-1481.23780761,0.00017647,2]
[404562257,1770293442133,-181.08010149,0.00017647,2]
[404562258,1770293442143,-287.61899177,0.00017647,2]
[404562259,1770293442152,-217.15233878,0.00017647,2]
[404562260,1770293442162,-301.1433787,0.00017649,2]
[404562261,1770293442172,-869.18,0.00017664,2]
[404562262,1770293442182,-200.0,0.00017672,2]
[404562263,1770293442192,-200.0,0.00017672,2]
[404562264,1770293442202,-239.5,0.00017709,2]
[404562265,1770293442211,-152.0173956,0.00017735,2]
[404562266,1770293442221,-152.0,0.00017757,18]
[404562267,1770293442232,-69249.98978375,0.00017777,2]
[404562268,1770293442242,-93697.6986,0.00017777,2]
[404562269,1770293442254,-436.0,0.00017808,2]
[404562271,1770293442263,-1000.0,0.00017808,2]
[404562273,1770293442273,-179.37879,0.0001782,2]
[404562275,1770293442283,-179.37879,0.0001782,2]
[404562277,1770293442292,-179.37878,0.0001782,2]
[404562279,1770293442302,-460.0,0.00017825,2]
[404562281,1770293442311,-200.0,0.00017855,2]
[404562283,1770293442321,-500.0,0.00017856,2]
[404562285,1770293442332,-500.0,0.00017856,2]
[404562287,1770293442342,-200.0,0.00017856,2]
[404562289,1770293442353,-436.0,0.00017863,2]
[404562291,1770293442363,-460.0,0.00017875,2]
[404562292,1770293442373,-3039.83056484,0.00017881,2]
[404562293,1770293442382,-25000.0,0.00017891,3]
[404562294,1770293442391,-164.72,0.00017899,2]
[404562295,1770293442401,-27055.6114,0.000179,2]
[404562296,1770293442410,-25000.0,0.000179,3]
[404562297,1770293442420,-160.0,0.000179,3]
[404562298,1770293442430,-1000.0,0.000179,2]
[404562299,1770293442439,-9068.51831638,0.000179,3]
[404562300,1770293442449,-23407.50559422,0.000179,2]
[404562301,1770293442459,-16527.72442726,0.000179,2]
[404562302,1770293442468,-5421.14450726,0.000179,2]
[404562303,1770293442478,-4660.38038458,0.000179,2]
[404562304,1770293442488,-411.07033882,0.000179,2]
[404562305,1770293442498,-14839.0,0.000179,2]
[404562306,1770293442508,-436.0,0.00017918,2]
[404562307,1770293442517,-951.124593,0.00017926,7]
[404562308,1770293442527,-500.0,0.00017936,2]
[404562309,1770293442536,-1101.54215647,0.0001797,2]
[404562310,1770293442546,-436.0,0.00017972,2]
[404562311,1770293442555,-500.0,0.00017973,2]
[404562312,1770293442565,-500.0,0.00017973,2]
[404562313,1770293442575,-309.44398841,0.00017973,2]
[404562314,1770293442584,-500.0,0.00017973,2]
[404562315,1770293442595,-500.0,0.00017973,2]
[404562316,1770293442605,-500.0,0.00017973,2]
[404562317,1770293442615,-500.0,0.00017973,2]
[404562318,1770293442625,-500.0,0.00017973,2]
[404562319,1770293442635,-500.0,0.00017973,2]
[404562320,1770293442645,-500.0,0.00017973,2]
[404562321,1770293442656,-500.0,0.00017973,2]
[404562322,1770293442665,-500.0,0.00017973,2]
[404562323,1770293442674,-500.0,0.00017973,2]
[404562324,1770293442683,-500.0,0.00017973,2]
[404562325,1770293442693,-500.0,0.00017973,2]
[404562326,1770293442702,-500.0,0.00017973,2]
[404562327,1770293442713,-500.0,0.00017973,2]
[404562328,1770293442726,-520.97702983,0.00017973,2]
[404562329,1770293442736,-500.0,0.00017973,2]
[404562330,1770293442746,-500.0,0.00017973,2]
[404562331,1770293442755,-500.0,0.00017973,2]
[404562332,1770293442766,-500.0,0.00017973,2]
[404562333,1770293442776,-500.0,0.00017973,2]
[404562334,1770293442786,-160.11845722,0.00017973,2]
[404562335,1770293442796,-500.0,0.00017973,2]
[404562336,1770293442805,-500.0,0.00017973,2]
[404562337,1770293442814,-561.5530591,0.00017973,2]
[404562338,1770293442824,-500.0,0.00017973,2]
[404562339,1770293442834,-500.0,0.00017973,2]
[404562340,1770293442843,-262.39107038,0.00017973,2]
[404562341,1770293442855,-500.0,0.00017973,2]
[404562342,1770293442865,-500.0,0.00017973,2]
[404562343,1770293442874,-500.0,0.00017973,2]
[404562344,1770293442883,-502.08032841,0.00017973,2]
[404562345,1770293442893,-500.0,0.00017973,2]
[404562346,1770293442903,-500.0,0.00017973,2]
[404562347,1770293442913,-500.0,0.00017973,2]
[404562348,1770293442922,-500.0,0.00017973,2]
[404562349,1770293442932,-500.0,0.00017973,2]
[404562350,1770293442941,-500.0,0.00017973,2]
[404562352,1770293442951,-500.0,0.00017973,2]
[404562353,1770293442961,-500.0,0.00017973,2]
[404562354,1770293442970,-500.0,0.00017973,2]
[404562355,1770293442980,-500.0,0.00017973,2]
[404562356,1770293442990,-502.60776792,0.00017982,2]
[404562357,1770293442999,-500.0,0.00017998,2]
[404562358,1770293443010,-500.0,0.00017998,2]
[404562360,1770293443020,-500.0,0.00017998,2]
[404562362,1770293443029,-500.0,0.00017998,2]
[404562364,1770293443039,-448.31,0.00017998,2]
[404562366,1770293443048,-1010.8044,0.00017999,2]
[404562368,1770293443058,-300.0,0.00017999,2]
[404562369,1770293443068,-300.0,0.00017999,2]
[404562370,1770293443078,-666.0,0.00017999,2]
[404562371,1770293443087,-300.0,0.00017999,2]
[404562372,1770293443099,-300.0,0.00017999,2]
[404562373,1770293443109,-666.0,0.00017999,2]
[404562374,1770293443119,-305.85808466,0.00017999,2]
[404562375,1770293443128,-284.80146065,0.00018,2]
[404562376,1770293443138,-5180910.0815839,0.00018,2]
[404562377,1770293443147,-291772.87535034,0.00018,2]
[404562378,1770293443157,-1063322.58267257,0.00018,2]
[404562379,1770293443901,-568.607,0.00016115,2]
[404562380,1770293443911,-116.82748376,0.00018,2]
[404562381,1770293443935,-282.97833493,0.00018,2]
[404562382,1770293443947,-705.76,0.00018,2]
[404562383,1770293443967,-1343978.46551235,0.00018,2]
[404562384,1770293443977,-1192.49835159,0.00018,2]
[404562385,1770293443987,-1526.27576832,0.00018,2]
[404562386,1770293443997,-5108446.83918307,0.00018,2]
[404562387,1770293444524,-261.45900843,9.357e-05,2]
[404562391,1770293445588,-330.65062908,9.357e-05,2]
[404562392,1770293445599,-645.89112234,0.00018,2]
[404562393,1770293445611,-891.93999999,0.00018,2]
[404562394,1770293445622,-999.4796696,0.00018,2]
[404562395,1770293445643,-310.25882034,0.00018,2]
[404562396,1770293445698,-5717.03185049,0.00018,2]
[404562397,1770293445862,-2428.37667122,0.00018,2]
[404562398,1770293445914,-4247.79124662,0.00018,2]
[404562416,1770294010105,-151.0,9.072e-05,2]
[404562421,1770294251376,293.532683,0.00013886,7]
[404562422,1770294255543,242.73386104,1.8e-05,2]
[404562536,1770294631596,-729.05658628,8.662e-05,2]
[404562539,1770294631608,-470.94341372,8.662e-05,2]
[404562540,1770294631618,-300.0,8.662e-05,2]
[404562542,1770294631627,-1200.0,8.662e-05,2]
[404562543,1770294631635,-285.49676393,8.662e-05,2]
[404562544,1770294631647,-14.50323607,8.662e-05,2]
[404562545,1770294631655,-250.0,8.663e-05,2]
[404562546,1770294631665,-1462.90116487,8.663e-05,2]
[404562547,1770294631677,-1355.09155744,8.663e-05,2]
[404562548,1770294631762,-559.2491887,8.663e-05,2]
[404562549,1770294631773,-2792.8,8.663e-05,2]
[404562550,1770294631784,-544.02,8.663e-05,2]
[404562551,1770294631795,-2541.18529099,8.663e-05,2]
[404562552,1770294631807,-1924.092599,8.663e-05,2]
[404562553,1770294631818,-3007.1599678,8.663e-05,2]
[404562554,1770294631832,-1171.15387376,8.663e-05,2]
[404562557,1770294631862,-8455.67635744,8.663e-05,2]
[404562558,1770294631871,-6890.88,8.668e-05,2]
[404562559,1770294631881,-208.78447364,8.686e-05,2]
[404562560,1770294631890,-1222.0,8.705e-05,2]
[404562562,1770294631900,-150.0,8.729e-05,2]
[404562563,1770294631910,-9966.68195807,8.73e-05,2]
[404562564,1770294631918,-18765.07145218,8.73e-05,2]
[404562565,1770294631930,-700.05,8.73e-05,2]
[404562572,1770294632171,-437.436765,8.73e-05,2]
[404562574,1770294637755,-1020.29583807,8.73e-05,2]
[404562575,1770294637984,-836.01971632,8.73e-05,2]
[404562576,1770294638047,-4543.3576041,8.73e-05,2]
[404562577,1770294638059,-46400.25384978,8.73e-05,2]
[404562578,1770294638077,-315.80112416,8.73e-05,2]
[404562579,1770294638088,-1440.53628294,8.73e-05,2]
[404562580,1770294638100,-315.80112416,8.844e-05,2]
[404562581,1770294638110,-183.98915746,8.956e-05,2]
[404562582,1770294638122,-500.0,8.956e-05,2]
[404562583,1770294638133,-500.0,8.956e-05,2]
[404562584,1770294638143,-239.19245835,8.956e-05,2]
[404562585,1770294638156,-385.38165449,8.956e-05,2]
[404562586,1770294638167,-500.0,8.956e-05,2]
[404562588,1770294638178,-14675.6867445,8.957e-05,2]
[404562590,1770294638191,-3467.55,8.957e-05,2]
[404562593,1770294638213,-2486129.1532447,8.957e-05,2]
[404562595,1770294638227,-347.32,8.957e-05,2]
[404562644,1770294640060,-500.0,8.956e-05,2]
[404562645,1770294640084,-500.0,8.956e-05,2]
[404562646,1770294640095,-216.75704898,8.956e-05,2]
[404562647,1770294640120,-2283.24295102,8.957e-05,2]
[404562648,1770294640140,-876.825,8.957e-05,2]
[404562649,1770294640193,-309.1771989,8.957e-05,2]
[404562650,1770294640425,-326499.05023962,8.957e-05,2]
[404562651,1770294640487,-1747.0,8.957e-05,2]
[404562652,1770294640503,-350.25,8.957e-05,2]
[404562653,1770294640519,-663314.74462126,8.957e-05,2]
[404562654,1770294640533,-2500.0,8.957e-05,2]
[404562655,1770294640546,-315.80112416,8.957e-05,2]
[404562656,1770294640559,-188.17333529,8.957e-05,2]
[404562657,1770294640577,-1054.3,8.958e-05,2]
[404562658,1770294640589,-2805.729048,8.979e-05,2]
[404562659,1770294640601,-483.0,8.995e-05,2]
[404562660,1770294640612,-1287.0,8.998e-05,2]
[404562661,1770294640624,-208.0,9.013e-05,2]
[404562662,1770294640638,-251.3953049,9.029e-05,2]
[404562663,1770294640651,-150.0,9.055e-05,2]
[404562664,1770294640665,-201.77401449,9.055e-05,2]
[404562665,1770294640678,-200.0,9.055e-05,2]
[404562666,1770294640689,-269.92100004,9.055e-05,2]
[404562667,1770294640701,-150.0,9.055e-05,2]
[404562668,1770294640713,-500.0,9.055e-05,2]
[404562669,1770294640725,-500.0,9.055e-05,2]
[404562670,1770294640740,-151.68281621,9.055e-05,2]
[404562671,1770294640752,-174.11816518,9.055e-05,2]
[404562672,1770294640764,-500.0,9.056e-05,2]
[404562673,1770294640776,-500.0,9.056e-05,2]
[404562674,1770294640788,-500.0,9.056e-05,2]
[404562675,1770294640800,-500.0,9.056e-05,2]
[404562676,1770294640811,-500.0,9.056e-05,2]
[404562677,1770294640832,-500.0,9.056e-05,2]
[404562678,1770294640847,-500.0,9.056e-05,2]
[404562680,1770294640860,-500.0,9.056e-05,2]
[404562682,1770294640872,-500.0,9.056e-05,2]
[404562684,1770294640885,-500.0,9.056e-05,2]
[404562685,1770294640897,-500.0,9.056e-05,2]
[404562686,1770294640909,-500.0,9.056e-05,2]
[404562687,1770294640921,-500.0,9.056e-05,2]
[404562688,1770294640935,-500.0,9.056e-05,2]
[404562689,1770294640953,-500.0,9.056e-05,2]
[404562690,1770294640967,-500.0,9.056e-05,2]
[404562691,1770294640979,-500.0,9.056e-05,2]
[404562692,1770294640991,-500.0,9.056e-05,2]
[404562693,1770294641003,-500.0,9.056e-05,2]
[404562694,1770294641016,-500.0,9.056e-05,2]
[404562695,1770294641027,-500.0,9.056e-05,2]
[404562696,1770294641039,-500.0,9.056e-05,2]
[404562697,1770294641051,-500.0,9.056e-05,2]
[404562698,1770294641067,-500.0,9.056e-05,2]
[404562699,1770294641083,-500.0,9.056e-05,2]
[404562700,1770294641098,-318.61122455,9.056e-05,2]
[404562701,1770294641109,-500.0,9.056e-05,2]
[404562702,1770294641121,-500.0,9.056e-05,2]
[404562703,1770294641134,-500.0,9.056e-05,2]
[404562704,1770294641147,-500.0,9.056e-05,2]
[404562705,1770294641158,-500.0,9.056e-05,2]
[404562706,1770294641173,-500.0,9.056e-05,2]
[404562707,1770294641185,-600.0,9.056e-05,2]
[404562708,1770294641197,-500.0,9.056e-05,2]
[404562709,1770294641209,-500.0,9.056e-05,2]
[404562710,1770294641222,-500.0,9.056e-05,2]
[404562711,1770294641233,-500.0,9.056e-05,2]
[404562712,1770294641244,-500.0,9.056e-05,2]
[404562713,1770294641256,-1032.6,9.056e-05,2]
[404562714,1770294641270,-500.0,9.057e-05,2]
[404562715,1770294641281,-500.0,9.076e-05,2]
[404562716,1770294641292,-150.0,9.076e-05,2]
[404562717,1770294641303,-150.0,9.11e-05,2]
[404562718,1770294641321,-150.0,9.11e-05,2]
[404562719,1770294641332,-500.0,9.11e-05,2]
[404562720,1770294641344,-505.36603291,9.11e-05,2]
[404562721,1770294641355,-500.0,9.131e-05,2]
[404562722,1770294641366,-9999.99,9.141e-05,2]
[404562723,1770294641377,-9999.99,9.141e-05,2]
[404562724,1770294641388,-4999.99,9.141e-05,2]
[404562725,1770294641398,-9999.99,9.141e-05,2]
[404562726,1770294641408,-150.99,9.141e-05,2]
[404562727,1770294641419,-9999.99,9.141e-05,2]
[404562728,1770294641430,-299.99,9.141e-05,2]
[404562729,1770294641441,-499.99,9.141e-05,2]
[404562730,1770294641452,-150.99,9.141e-05,2]
[404562731,1770294641462,-999.99,9.141e-05,2]
[404562732,1770294641473,-1837.988,9.156e-05,2]
[404562733,1770294641484,-150.384,9.156e-05,2]
[404562734,1770294641494,-1418.36,9.164e-05,2]
[404562735,1770294641506,-150.0,9.165e-05,2]
[404562736,1770294641517,-500.0,9.165e-05,2]
[404562737,1770294641529,-1418.36,9.181e-05,2]
[404562738,1770294641540,-500.0,9.186e-05,2]
[404562739,1770294641551,-1418.36,9.198e-05,2]
[404562740,1770294641561,-1418.36,9.215e-05,2]
[404562741,1770294641577,-150.0,9.219e-05,2]
[404562742,1770294641587,-500.0,9.219e-05,2]
[404562743,1770294641598,-1418.36,9.232e-05,2]
[404562744,1770294641608,-500.0,9.24e-05,2]
[404562745,1770294641619,-1418.36,9.249e-05,2]
[404562746,1770294641629,-203.3499,9.256e-05,2]
[404562747,1770294641639,-1418.36,9.266e-05,2]
[404562748,1770294641649,-266.00716112,9.274e-05,2]
[404562749,1770294641659,-563.96761622,9.274e-05,2]
[404562750,1770294641670,-1418.36,9.283e-05,2]
[404562751,1770294641680,-500.0,9.295e-05,2]
[404562752,1770294641690,-1418.36,9.299e-05,2]
[404562753,1770294641700,-1418.36,9.316e-05,2]
[404562754,1770294641711,-1032.6,9.33e-05,2]
[404562755,1770294641720,-500.0,9.331e-05,2]
[404562756,1770294641730,-1418.36,9.333e-05,2]
[404562757,1770294641740,-500.0,9.35e-05,2]
[404562758,1770294641750,-1418.36,9.35e-05,2]
[404562759,1770294641761,-1000.0,9.361e-05,2]
[404562760,1770294641772,-1418.36,9.367e-05,2]
[404562761,1770294641782,-1418.36,9.384e-05,2]
[404562762,1770294641792,-1418.36,9.401e-05,2]
[404562763,1770294641802,-500.0,9.405e-05,2]
[404562764,1770294641812,-1418.36,9.418e-05,2]
[404562765,1770294641823,-1418.36,9.434e-05,2]
[404562766,1770294641833,-1418.36,9.451e-05,2]
[404562767,1770294641843,-230.01386771,9.46e-05,2]
[404562768,1770294641852,-1418.36,9.468e-05,2]
[404562769,1770294641863,-1418.36,9.485e-05,2]
[404562770,1770294641874,-250.0,9.528e-05,2]
[404562771,1770294641884,-1680.0,9.529e-05,2]
[404562772,1770294641895,-420.0,9.529e-05,2]
[404562773,1770294641905,-255.0,9.602e-05,2]
[404562774,1770294641917,-1032.6,9.604e-05,2]
[404562775,1770294641927,-500.0,9.605e-05,2]
[404562776,1770294641937,-204.69,9.771e-05,2]
[404562777,1770294641947,-361.09,9.81e-05,2]
[404562778,1770294641957,-1032.6,9.878e-05,2]
[404562779,1770294641967,-500.0,9.879e-05,2]
[404562780,1770294641977,-200.0,0.0001,2]
[404562781,1770294641987,-151.0,0.0001,2]
[404562782,1770294641998,-151.0,0.0001,2]
[404562783,1770294642008,-151.0,0.0001,2]
[404562784,1770294642018,-151.0,0.0001,2]
[404562785,1770294642027,-500.0,0.0001,2]
[404562786,1770294642037,-151.0,0.0001,2]
[404562787,1770294642048,-500.0,0.0001,2]
[404562788,1770294642058,-500.0,0.0001,2]
[404562789,1770294642071,-151.0,0.0001,2]
[404562790,1770294642085,-500.0,0.0001,2]
[404562791,1770294642095,-500.0,0.0001,2]
[404562792,1770294642105,-500.0,0.0001,2]
[404562793,1770294642115,-500.0,0.0001,2]
[404562794,1770294642126,-151.0,0.0001,2]
[404562795,1770294642136,-500.0,0.0001,2]
[404562796,1770294642147,-500.0,0.0001,2]
[404562797,1770294642156,-500.0,0.0001,2]
[404562798,1770294642166,-500.0,0.0001,2]
[404562799,1770294642175,-500.0,0.0001,2]
[404562800,1770294642185,-500.0,0.0001,2]
[404562801,1770294642194,-500.0,0.0001,2]
[404562802,1770294642204,-500.0,0.0001,2]
[404562803,1770294642214,-500.0,0.0001,2]
[404562804,1770294642224,-500.0,0.0001,2]
[404562805,1770294642234,-151.0,0.0001,2]
[404562806,1770294642244,-500.0,0.0001,2]
[404562807,1770294642254,-500.0,0.0001,2]
[404562808,1770294642265,-500.0,0.0001,2]
[404562809,1770294642275,-151.0,0.0001,2]
[404562810,1770294642286,-151.0,0.0001,2]
[404562811,1770294642298,-500.0,0.0001,2]
[404562812,1770294642308,-500.0,0.0001,2]
[404562813,1770294642323,-151.0,0.0001,2]
[404562814,1770294642334,-200.0,0.0001,2]
[404562815,1770294642345,-500.0,0.0001,2]
[404562816,1770294642354,-151.0,0.0001,2]
[404562817,1770294642364,-151.0,0.0001,2]
[404562818,1770294642374,-151.0,0.0001,2]
[404562819,1770294642384,-151.0,0.0001,2]
[404562820,1770294642394,-151.0,0.0001,2]
[404562821,1770294642403,-151.0,0.0001,2]
[404562822,1770294642413,-151.0,0.0001,2]
[404562823,1770294642424,-151.0,0.0001,2]
[404562824,1770294642434,-151.0,0.0001,2]
[404562825,1770294642444,-151.0,0.0001,2]
[404562826,1770294642454,-151.0,0.0001,2]
[404562827,1770294642464,-151.0,0.0001,2]
[404562828,1770294642475,-151.0,0.0001,2]
[404562829,1770294642486,-151.0,0.0001,2]
[404562830,1770294642496,-151.0,0.0001,2]
[404562831,1770294642506,-151.0,0.0001,2]
[404562833,1770294642517,-151.0,0.0001,2]
[404562834,1770294642527,-151.0,0.0001,2]
[404562836,1770294642537,-151.0,0.0001,2]
[404562838,1770294642547,-151.0,0.0001,2]
[404562839,1770294642558,-169.4141922,0.0001,2]
[404562840,1770294642575,-154.53457251,0.0001,2]
[404562841,1770294642587,-1032.6,0.00010152,2]
[404562842,1770294642598,-500.0,0.00010153,2]
[404562843,1770294642609,-15362.84,0.00010214,2]
[404562844,1770294642620,-7097.88554789,0.00010376,2]
[404562845,1770294642630,-1032.6,0.00010425,2]
[404562846,1770294642639,-502.96360645,0.00010427,2]
[404562847,1770294642649,-163.85,0.00010445,2]
[404562848,1770294642658,-587.0,0.00010481,2]
[404562849,1770294642667,-2351.0,0.00010481,2]
[404562850,1770294642678,-1000.0,0.00010532,2]
[404562851,1770294642688,-200.0,0.00010548,2]
[404562852,1770294642699,-200.0,0.00010548,2]
[404562853,1770294642708,-500.0,0.00010548,2]
[404562854,1770294642719,-433.0,0.00010562,2]
[404562855,1770294642731,-2805.729048,0.00010664,2]
[404562856,1770294642741,-1032.6,0.00010699,2]
[404562857,1770294642751,-675.88,0.00010862,2]
[404562858,1770294642760,-879.22,0.00010862,2]
[404562859,1770294642770,-200.0,0.00010862,2]
[404562860,1770294642780,-500.0,0.00010959,2]
[404562861,1770294642790,-270.21862608,0.00010959,2]
[404562862,1770294642801,-150.0,0.00010959,2]
[404562863,1770294642811,-1032.6,0.00010973,2]
[404562864,1770294642825,-200.0,0.00011096,2]
[404562865,1770294642835,-200.0,0.00011096,2]
[404562866,1770294642845,-500.0,0.00011096,2]
[404562867,1770294642854,-16527.72442727,0.00011099,2]
[404562868,1770294642863,-16527.72442726,0.00011099,2]
[404562869,1770294642873,-16527.72442726,0.00011099,2]
[404562870,1770294642882,-23407.50559428,0.00011099,2]
[404562871,1770294642893,-23407.50559422,0.00011099,2]
[404562872,1770294642903,-23407.50559422,0.00011099,2]
[404562873,1770294642913,-4753.02,0.00011233,2]
[404562874,1770294642924,-224.47,0.00011233,2]
[404562875,1770294642934,-1032.6,0.00011247,2]
[404562876,1770294642943,-10549.8,0.00011289,2]
[404562877,1770294642953,-250.0,0.00011445,2]
[404562878,1770294642963,-1032.6,0.00011521,2]
[404562879,1770294642973,-3292.0,0.0001153,2]
[404562892,1770294643206,-736.0,0.00011618,2]
[404562895,1770294643216,-200.0,0.00011644,2]
[404562898,1770294643227,-200.0,0.00011644,2]
[404562901,1770294643237,-500.0,0.00011644,2]
[404562903,1770294643246,-1000.0,0.00011702,2]
[404562905,1770294643257,-1032.6,0.00011795,2]
[404562907,1770294643266,-23407.50559422,0.00011871,2]
[404562908,1770294643276,-16527.72442726,0.00011938,2]
[404562909,1770294643286,-1032.6,0.00012069,2]
[404562910,1770294643297,-6890.88,0.00012136,2]
[404562911,1770294643308,-200.0,0.00012192,2]
[404562912,1770294643321,-200.0,0.00012192,2]
[404562913,1770294643332,-500.0,0.00012192,2]
[404562914,1770294643342,-1032.6,0.00012343,2]
[404562916,1770294643352,-1032.6,0.00012617,2]
[404562918,1770294643362,-152.0,0.00012634,3]
[404562920,1770294643379,-4609.0,0.00012683,2]
[404562922,1770294643390,-200.0,0.0001274,2]
[404562924,1770294643399,-200.0,0.0001274,2]
[404562926,1770294643410,-500.0,0.0001274,2]
[404562928,1770294643419,-1151.0,0.00012779,2]
[404562930,1770294643429,-1000.0,0.00012872,2]